Workbook

Sheet 抵押貸款計算機
A1: 抵押貸款計算機
B3: 輸入 | C3: 抵押金額 | E3: NT$9,000,000 | G3: 主要統計數字 | H3: 每月貸款還款金額 | J3: =IF(ValuesEntered,PMT(InterestRate/12,DurationOfLoan,-LoanAmount),0) -> NT$3,398 | M3: 選擇性輸入 | N3: 貸款開始日期 | P3: =TODAY()+30 -> 2012-09-05
H4: 每月還款總金額 | J4: =IF(ValuesEntered,SUM(total_payments),0) -> NT$4,687,642
C5: 利率 | E5: 5.0% | H5: 貸款還款總金額 | J5: =IF(ValuesEntered,SUM(total_loan_payment),0) -> NT$1,087,642 | N5: 房地產稅率 | Q5: 1.50%
H6: 支付利息總金額 | J6: =IF(ValuesEntered,SUM(interest),0) -> NT$486,890
C7: 貸款期間 (以月為單位) | E7: 320 | H7: 額外還款後減少的月數 | K7: =IF(ValuesEntered,(DurationOfLoan-COUNTIF(NoPaymentsRemaining,">0")),0) -> 1 | N7: 房屋稅金額 | R7: =Q5*E3/12 -> NT$11,250
H8: 額外還款總金額 | J8: =IF(ValuesEntered,SUM(extra_payments),0) -> NT$200
C9: 貸款金額 | E9: NT$600,000 | H9: 節省利息金額 | J9: =IF(ValuesEntered,ROUND(-SUMPRODUCT(IPMT($E$5/12,ROW(OFFSET(A1,,,$E$7,1)),$E$7,$E$9)),0)-ROUND(J6,0),0) -> NT$552 | N9: PMI 利率 | P9: 5.0%
N11: PMI 金額 | P11: =PMIRate*LoanAmount/12 -> NT$2,500
B15: =IFERROR(IF(ValuesEntered,PercentageIncreaseDecrease,""),"") -> 0.171875 | C15: 如果每月還款金額 | D15: 增加 10% | E15: =IFERROR(IF(ValuesEntered,"，則"&IF(PercentageIncreaseDecrease>0,"您的貸款期間將會縮短為 "&PaymentDurationIncreaseDecrease&" 個月，且您的還款期間將會減少 "&TEXT(PercentageIncreaseDecrease,"0.0%"),IF(PercentageIncreaseDecrease=0,"您的貸款期間將不會變動，且您的還款期間也不會增減。",IF(PercentageIncreaseDecrease<0,"您的貸款期間將會延長為 "&PaymentDurationIncreaseDecrease&" 個月，且您的還款期間將會增加 "&TEXT(PercentageIncreaseDecrease,"0.0%"),""))),""),"") -> ，則您的貸款期間將會縮短為 265 個月，且您的還款期間將會減少 17.2%
B18: # | C18: 還款日期 | D18: 期初餘額 | E18: 利息 | F18: 本金 | I18: 額外還款 | J18: 房屋稅 | K18: pmi | L18: 還款總金額 | O18: 期末餘額 | R18: 剩餘月數
B19: =ROWS($B$19:B19) -> 1 | C19: =IF(ValuesEntered,LoanStart,"") -> 2012-09-05 | D19: =E9 -> NT$600,000 | E19: =IF(ValuesEntered,-IPMT($E$5/12,1,$E$7-ROWS($C$19:C19)+1,D19),"") -> NT$2,500 | F19: =IF(ValuesEntered,-PPMT($E$5/12,1,$E$7-ROWS($C$19:C19)+1,D19),"") -> NT$898 | I19: NT$100 | J19: =$R$7 -> NT$11,250 | K19: =IF(D19<0.8*$E$3,0,$P$11) -> NT$0 | L19: =IF(ValuesEntered,E19+F19+I19+J19+K19,"") -> NT$14,748 | O19: =IF(ValuesEntered,D19-F19-I19,"") -> NT$599,002 | R19: =IF(ValuesEntered,IF(R18<1,0,NPER($E$5/12,-$J$3,O19)),"") -> 319
B20: =ROWS($B$19:B20) -> 2 | C20: =IF(ValuesEntered,IF(O19>0,EDATE(C19,1),""),"") -> 2012-10-05 | D20: =IF(C20="",0,O19) -> NT$599,002 | E20: =IFERROR(-IPMT($E$5/12,1,R19,D20),0) -> NT$2,496 | F20: =IFERROR(-PPMT($E$5/12,1,R19,D20),0) -> NT$902 | I20: NT$100 | J20: =IF(C20="",0,$R$7) -> NT$11,250 | K20: =IF(C20="",0,IF(D20<0.8*$E$3,0,$P$11)) -> NT$0 | L20: =IF(C20="",0,E20+F20+I20+J20+K20) -> NT$14,748 | O20: =IF(C20="",0,D20-F20-I20) -> NT$597,999 | R20: =IF(ValuesEntered,IF(R19<1,0,NPER($E$5/12,-$J$3,O20)),"") -> 318
B21: =ROWS($B$19:B21) -> 3 | C21: =IF(O20>0,EDATE(C20,1),"") -> 2012-11-05 | D21: NT$597,999 | E21: NT$2,492 | F21: NT$907 | J21: NT$11,250 | K21: NT$0 | L21: NT$14,648 | O21: NT$597,093 | R21: =IF(ValuesEntered,IF(R20<1,0,NPER($E$5/12,-$J$3,O21)),"") -> 317
B22: =ROWS($B$19:B22) -> 4 | C22: 2012-12-05 | D22: NT$597,093 | E22: NT$2,488 | F22: NT$910 | J22: NT$11,250 | K22: NT$0 | L22: NT$14,648 | O22: NT$596,182 | R22: =IF(ValuesEntered,IF(R21<1,0,NPER($E$5/12,-$J$3,O22)),"") -> 316
B23: =ROWS($B$19:B23) -> 5 | C23: 2013-01-05 | D23: NT$596,182 | E23: NT$2,484 | F23: NT$914 | J23: NT$11,250 | K23: NT$0 | L23: NT$14,648 | O23: NT$595,268 | R23: =IF(ValuesEntered,IF(R22<1,0,NPER($E$5/12,-$J$3,O23)),"") -> 315
B24: =ROWS($B$19:B24) -> 6 | C24: 2013-02-05 | D24: NT$595,268 | E24: NT$2,480 | F24: NT$918 | J24: NT$11,250 | K24: NT$0 | L24: NT$14,648 | O24: NT$594,350 | R24: =IF(ValuesEntered,IF(R23<1,0,NPER($E$5/12,-$J$3,O24)),"") -> 314
B25: =ROWS($B$19:B25) -> 7 | C25: 2013-03-05 | D25: NT$594,350 | E25: NT$2,476 | F25: NT$922 | J25: NT$11,250 | K25: NT$0 | L25: NT$14,648 | O25: NT$593,428 | R25: =IF(ValuesEntered,IF(R24<1,0,NPER($E$5/12,-$J$3,O25)),"") -> 313
B26: =ROWS($B$19:B26) -> 8 | C26: 2013-04-05 | D26: NT$593,428 | E26: NT$2,473 | F26: NT$926 | J26: NT$11,250 | K26: NT$0 | L26: NT$14,648 | O26: NT$592,503 | R26: =IF(ValuesEntered,IF(R25<1,0,NPER($E$5/12,-$J$3,O26)),"") -> 312
B27: =ROWS($B$19:B27) -> 9 | C27: 2013-05-05 | D27: NT$592,503 | E27: NT$2,469 | F27: NT$929 | J27: NT$11,250 | K27: NT$0 | L27: NT$14,648 | O27: NT$591,573 | R27: =IF(ValuesEntered,IF(R26<1,0,NPER($E$5/12,-$J$3,O27)),"") -> 311
B28: =ROWS($B$19:B28) -> 10 | C28: 2013-06-05 | D28: NT$591,573 | E28: NT$2,465 | F28: NT$933 | J28: NT$11,250 | K28: NT$0 | L28: NT$14,648 | O28: NT$590,640 | R28: =IF(ValuesEntered,IF(R27<1,0,NPER($E$5/12,-$J$3,O28)),"") -> 310
B29: =ROWS($B$19:B29) -> 11 | C29: 2013-07-05 | D29: NT$590,640 | E29: NT$2,461 | F29: NT$937 | J29: NT$11,250 | K29: NT$0 | L29: NT$14,648 | O29: NT$589,703 | R29: =IF(ValuesEntered,IF(R28<1,0,NPER($E$5/12,-$J$3,O29)),"") -> 309
B30: =ROWS($B$19:B30) -> 12 | C30: 2013-08-05 | D30: NT$589,703 | E30: NT$2,457 | F30: NT$941 | J30: NT$11,250 | K30: NT$0 | L30: NT$14,648 | O30: NT$588,762 | R30: =IF(ValuesEntered,IF(R29<1,0,NPER($E$5/12,-$J$3,O30)),"") -> 308
B31: =ROWS($B$19:B31) -> 13 | C31: 2013-09-05 | D31: NT$588,762 | E31: NT$2,453 | F31: NT$945 | J31: NT$11,250 | K31: NT$0 | L31: NT$14,648 | O31: NT$587,816 | R31: =IF(ValuesEntered,IF(R30<1,0,NPER($E$5/12,-$J$3,O31)),"") -> 307
B32: =ROWS($B$19:B32) -> 14 | C32: 2013-10-05 | D32: NT$587,816 | E32: NT$2,449 | F32: NT$949 | J32: NT$11,250 | K32: NT$0 | L32: NT$14,648 | O32: NT$586,867 | R32: =IF(ValuesEntered,IF(R31<1,0,NPER($E$5/12,-$J$3,O32)),"") -> 306
B33: =ROWS($B$19:B33) -> 15 | C33: 2013-11-05 | D33: NT$586,867 | E33: NT$2,445 | F33: NT$953 | J33: NT$11,250 | K33: NT$0 | L33: NT$14,648 | O33: NT$585,914 | R33: =IF(ValuesEntered,IF(R32<1,0,NPER($E$5/12,-$J$3,O33)),"") -> 305
B34: =ROWS($B$19:B34) -> 16 | C34: 2013-12-05 | D34: NT$585,914 | E34: NT$2,441 | F34: NT$957 | J34: NT$11,250 | K34: NT$0 | L34: NT$14,648 | O34: NT$584,958 | R34: =IF(ValuesEntered,IF(R33<1,0,NPER($E$5/12,-$J$3,O34)),"") -> 304
B35: =ROWS($B$19:B35) -> 17 | C35: 2014-01-05 | D35: NT$584,958 | E35: NT$2,437 | F35: NT$961 | J35: NT$11,250 | K35: NT$0 | L35: NT$14,648 | O35: NT$583,997 | R35: =IF(ValuesEntered,IF(R34<1,0,NPER($E$5/12,-$J$3,O35)),"") -> 303
B36: =ROWS($B$19:B36) -> 18 | C36: 2014-02-05 | D36: NT$583,997 | E36: NT$2,433 | F36: NT$965 | J36: NT$11,250 | K36: NT$0 | L36: NT$14,648 | O36: NT$583,032 | R36: =IF(ValuesEntered,IF(R35<1,0,NPER($E$5/12,-$J$3,O36)),"") -> 302
B37: =ROWS($B$19:B37) -> 19 | C37: 2014-03-05 | D37: NT$583,032 | E37: NT$2,429 | F37: NT$969 | J37: NT$11,250 | K37: NT$0 | L37: NT$14,648 | O37: NT$582,063 | R37: =IF(ValuesEntered,IF(R36<1,0,NPER($E$5/12,-$J$3,O37)),"") -> 301
B38: =ROWS($B$19:B38) -> 20 | C38: 2014-04-05 | D38: NT$582,063 | E38: NT$2,425 | F38: NT$973 | J38: NT$11,250 | K38: NT$0 | L38: NT$14,648 | O38: NT$581,090 | R38: =IF(ValuesEntered,IF(R37<1,0,NPER($E$5/12,-$J$3,O38)),"") -> 300
B39: =ROWS($B$19:B39) -> 21 | C39: 2014-05-05 | D39: NT$581,090 | E39: NT$2,421 | F39: NT$977 | J39: NT$11,250 | K39: NT$0 | L39: NT$14,648 | O39: NT$580,113 | R39: =IF(ValuesEntered,IF(R38<1,0,NPER($E$5/12,-$J$3,O39)),"") -> 299
B40: =ROWS($B$19:B40) -> 22 | C40: 2014-06-05 | D40: NT$580,113 | E40: NT$2,417 | F40: NT$981 | J40: NT$11,250 | K40: NT$0 | L40: NT$14,648 | O40: NT$579,132 | R40: =IF(ValuesEntered,IF(R39<1,0,NPER($E$5/12,-$J$3,O40)),"") -> 298
B41: =ROWS($B$19:B41) -> 23 | C41: 2014-07-05 | D41: NT$579,132 | E41: NT$2,413 | F41: NT$985 | J41: NT$11,250 | K41: NT$0 | L41: NT$14,648 | O41: NT$578,146 | R41: =IF(ValuesEntered,IF(R40<1,0,NPER($E$5/12,-$J$3,O41)),"") -> 297
B42: =ROWS($B$19:B42) -> 24 | C42: 2014-08-05 | D42: NT$578,146 | E42: NT$2,409 | F42: NT$989 | J42: NT$11,250 | K42: NT$0 | L42: NT$14,648 | O42: NT$577,157 | R42: =IF(ValuesEntered,IF(R41<1,0,NPER($E$5/12,-$J$3,O42)),"") -> 296
B43: =ROWS($B$19:B43) -> 25 | C43: 2014-09-05 | D43: NT$577,157 | E43: NT$2,405 | F43: NT$993 | J43: NT$11,250 | K43: NT$0 | L43: NT$14,648 | O43: NT$576,164 | R43: =IF(ValuesEntered,IF(R42<1,0,NPER($E$5/12,-$J$3,O43)),"") -> 295
B44: =ROWS($B$19:B44) -> 26 | C44: 2014-10-05 | D44: NT$576,164 | E44: NT$2,401 | F44: NT$998 | J44: NT$11,250 | K44: NT$0 | L44: NT$14,648 | O44: NT$575,166 | R44: =IF(ValuesEntered,IF(R43<1,0,NPER($E$5/12,-$J$3,O44)),"") -> 294
B45: =ROWS($B$19:B45) -> 27 | C45: 2014-11-05 | D45: NT$575,166 | E45: NT$2,397 | F45: NT$1,002 | J45: NT$11,250 | K45: NT$0 | L45: NT$14,648 | O45: NT$574,164 | R45: =IF(ValuesEntered,IF(R44<1,0,NPER($E$5/12,-$J$3,O45)),"") -> 293
B46: =ROWS($B$19:B46) -> 28 | C46: 2014-12-05 | D46: NT$574,164 | E46: NT$2,392 | F46: NT$1,006 | J46: NT$11,250 | K46: NT$0 | L46: NT$14,648 | O46: NT$573,158 | R46: =IF(ValuesEntered,IF(R45<1,0,NPER($E$5/12,-$J$3,O46)),"") -> 292
B47: =ROWS($B$19:B47) -> 29 | C47: 2015-01-05 | D47: NT$573,158 | E47: NT$2,388 | F47: NT$1,010 | J47: NT$11,250 | K47: NT$0 | L47: NT$14,648 | O47: NT$572,148 | R47: =IF(ValuesEntered,IF(R46<1,0,NPER($E$5/12,-$J$3,O47)),"") -> 291
B48: =ROWS($B$19:B48) -> 30 | C48: 2015-02-05 | D48: NT$572,148 | E48: NT$2,384 | F48: NT$1,014 | J48: NT$11,250 | K48: NT$0 | L48: NT$14,648 | O48: NT$571,134 | R48: =IF(ValuesEntered,IF(R47<1,0,NPER($E$5/12,-$J$3,O48)),"") -> 290
B49: =ROWS($B$19:B49) -> 31 | C49: 2015-03-05 | D49: NT$571,134 | E49: NT$2,380 | F49: NT$1,019 | J49: NT$11,250 | K49: NT$0 | L49: NT$14,648 | O49: NT$570,115 | R49: =IF(ValuesEntered,IF(R48<1,0,NPER($E$5/12,-$J$3,O49)),"") -> 289
B50: =ROWS($B$19:B50) -> 32 | C50: 2015-04-05 | D50: NT$570,115 | E50: NT$2,375 | F50: NT$1,023 | J50: NT$11,250 | K50: NT$0 | L50: NT$14,648 | O50: NT$569,093 | R50: =IF(ValuesEntered,IF(R49<1,0,NPER($E$5/12,-$J$3,O50)),"") -> 288
B51: =ROWS($B$19:B51) -> 33 | C51: 2015-05-05 | D51: NT$569,093 | E51: NT$2,371 | F51: NT$1,027 | J51: NT$11,250 | K51: NT$0 | L51: NT$14,648 | O51: NT$568,066 | R51: =IF(ValuesEntered,IF(R50<1,0,NPER($E$5/12,-$J$3,O51)),"") -> 287
B52: =ROWS($B$19:B52) -> 34 | C52: 2015-06-05 | D52: NT$568,066 | E52: NT$2,367 | F52: NT$1,031 | J52: NT$11,250 | K52: NT$0 | L52: NT$14,648 | O52: NT$567,034 | R52: =IF(ValuesEntered,IF(R51<1,0,NPER($E$5/12,-$J$3,O52)),"") -> 286
B53: =ROWS($B$19:B53) -> 35 | C53: 2015-07-05 | D53: NT$567,034 | E53: NT$2,363 | F53: NT$1,036 | J53: NT$11,250 | K53: NT$0 | L53: NT$14,648 | O53: NT$565,999 | R53: =IF(ValuesEntered,IF(R52<1,0,NPER($E$5/12,-$J$3,O53)),"") -> 285
B54: =ROWS($B$19:B54) -> 36 | C54: 2015-08-05 | D54: NT$565,999 | E54: NT$2,358 | F54: NT$1,040 | J54: NT$11,250 | K54: NT$0 | L54: NT$14,648 | O54: NT$564,959 | R54: =IF(ValuesEntered,IF(R53<1,0,NPER($E$5/12,-$J$3,O54)),"") -> 284
B55: =ROWS($B$19:B55) -> 37 | C55: 2015-09-05 | D55: NT$564,959 | E55: NT$2,354 | F55: NT$1,044 | J55: NT$11,250 | K55: NT$0 | L55: NT$14,648 | O55: NT$563,915 | R55: =IF(ValuesEntered,IF(R54<1,0,NPER($E$5/12,-$J$3,O55)),"") -> 283
B56: =ROWS($B$19:B56) -> 38 | C56: 2015-10-05 | D56: NT$563,915 | E56: NT$2,350 | F56: NT$1,049 | J56: NT$11,250 | K56: NT$0 | L56: NT$14,648 | O56: NT$562,866 | R56: =IF(ValuesEntered,IF(R55<1,0,NPER($E$5/12,-$J$3,O56)),"") -> 282
B57: =ROWS($B$19:B57) -> 39 | C57: 2015-11-05 | D57: NT$562,866 | E57: NT$2,345 | F57: NT$1,053 | J57: NT$11,250 | K57: NT$0 | L57: NT$14,648 | O57: NT$561,813 | R57: =IF(ValuesEntered,IF(R56<1,0,NPER($E$5/12,-$J$3,O57)),"") -> 281
B58: =ROWS($B$19:B58) -> 40 | C58: 2015-12-05 | D58: NT$561,813 | E58: NT$2,341 | F58: NT$1,057 | J58: NT$11,250 | K58: NT$0 | L58: NT$14,648 | O58: NT$560,756 | R58: =IF(ValuesEntered,IF(R57<1,0,NPER($E$5/12,-$J$3,O58)),"") -> 280
B59: =ROWS($B$19:B59) -> 41 | C59: 2016-01-05 | D59: NT$560,756 | E59: NT$2,336 | F59: NT$1,062 | J59: NT$11,250 | K59: NT$0 | L59: NT$14,648 | O59: NT$559,694 | R59: =IF(ValuesEntered,IF(R58<1,0,NPER($E$5/12,-$J$3,O59)),"") -> 279
B60: =ROWS($B$19:B60) -> 42 | C60: 2016-02-05 | D60: NT$559,694 | E60: NT$2,332 | F60: NT$1,066 | J60: NT$11,250 | K60: NT$0 | L60: NT$14,648 | O60: NT$558,628 | R60: =IF(ValuesEntered,IF(R59<1,0,NPER($E$5/12,-$J$3,O60)),"") -> 278
B61: =ROWS($B$19:B61) -> 43 | C61: 2016-03-05 | D61: NT$558,628 | E61: NT$2,328 | F61: NT$1,071 | J61: NT$11,250 | K61: NT$0 | L61: NT$14,648 | O61: NT$557,557 | R61: =IF(ValuesEntered,IF(R60<1,0,NPER($E$5/12,-$J$3,O61)),"") -> 277
B62: =ROWS($B$19:B62) -> 44 | C62: 2016-04-05 | D62: NT$557,557 | E62: NT$2,323 | F62: NT$1,075 | J62: NT$11,250 | K62: NT$0 | L62: NT$14,648 | O62: NT$556,482 | R62: =IF(ValuesEntered,IF(R61<1,0,NPER($E$5/12,-$J$3,O62)),"") -> 276
B63: =ROWS($B$19:B63) -> 45 | C63: 2016-05-05 | D63: NT$556,482 | E63: NT$2,319 | F63: NT$1,080 | J63: NT$11,250 | K63: NT$0 | L63: NT$14,648 | O63: NT$555,402 | R63: =IF(ValuesEntered,IF(R62<1,0,NPER($E$5/12,-$J$3,O63)),"") -> 275
B64: =ROWS($B$19:B64) -> 46 | C64: 2016-06-05 | D64: NT$555,402 | E64: NT$2,314 | F64: NT$1,084 | J64: NT$11,250 | K64: NT$0 | L64: NT$14,648 | O64: NT$554,318 | R64: =IF(ValuesEntered,IF(R63<1,0,NPER($E$5/12,-$J$3,O64)),"") -> 274
B65: =ROWS($B$19:B65) -> 47 | C65: 2016-07-05 | D65: NT$554,318 | E65: NT$2,310 | F65: NT$1,089 | J65: NT$11,250 | K65: NT$0 | L65: NT$14,648 | O65: NT$553,230 | R65: =IF(ValuesEntered,IF(R64<1,0,NPER($E$5/12,-$J$3,O65)),"") -> 273
B66: =ROWS($B$19:B66) -> 48 | C66: 2016-08-05 | D66: NT$553,230 | E66: NT$2,305 | F66: NT$1,093 | J66: NT$11,250 | K66: NT$0 | L66: NT$14,648 | O66: NT$552,136 | R66: =IF(ValuesEntered,IF(R65<1,0,NPER($E$5/12,-$J$3,O66)),"") -> 272
B67: =ROWS($B$19:B67) -> 49 | C67: 2016-09-05 | D67: NT$552,136 | E67: NT$2,301 | F67: NT$1,098 | J67: NT$11,250 | K67: NT$0 | L67: NT$14,648 | O67: NT$551,039 | R67: =IF(ValuesEntered,IF(R66<1,0,NPER($E$5/12,-$J$3,O67)),"") -> 271
B68: =ROWS($B$19:B68) -> 50 | C68: 2016-10-05 | D68: NT$551,039 | E68: NT$2,296 | F68: NT$1,102 | J68: NT$11,250 | K68: NT$0 | L68: NT$14,648 | O68: NT$549,936 | R68: =IF(ValuesEntered,IF(R67<1,0,NPER($E$5/12,-$J$3,O68)),"") -> 270
B69: =ROWS($B$19:B69) -> 51 | C69: 2016-11-05 | D69: NT$549,936 | E69: NT$2,291 | F69: NT$1,107 | J69: NT$11,250 | K69: NT$0 | L69: NT$14,648 | O69: NT$548,830 | R69: =IF(ValuesEntered,IF(R68<1,0,NPER($E$5/12,-$J$3,O69)),"") -> 269
B70: =ROWS($B$19:B70) -> 52 | C70: 2016-12-05 | D70: NT$548,830 | E70: NT$2,287 | F70: NT$1,111 | J70: NT$11,250 | K70: NT$0 | L70: NT$14,648 | O70: NT$547,718 | R70: =IF(ValuesEntered,IF(R69<1,0,NPER($E$5/12,-$J$3,O70)),"") -> 268
B71: =ROWS($B$19:B71) -> 53 | C71: 2017-01-05 | D71: NT$547,718 | E71: NT$2,282 | F71: NT$1,116 | J71: NT$11,250 | K71: NT$0 | L71: NT$14,648 | O71: NT$546,602 | R71: =IF(ValuesEntered,IF(R70<1,0,NPER($E$5/12,-$J$3,O71)),"") -> 267
B72: =ROWS($B$19:B72) -> 54 | C72: 2017-02-05 | D72: NT$546,602 | E72: NT$2,278 | F72: NT$1,121 | J72: NT$11,250 | K72: NT$0 | L72: NT$14,648 | O72: NT$545,481 | R72: =IF(ValuesEntered,IF(R71<1,0,NPER($E$5/12,-$J$3,O72)),"") -> 266
B73: =ROWS($B$19:B73) -> 55 | C73: 2017-03-05 | D73: NT$545,481 | E73: NT$2,273 | F73: NT$1,125 | J73: NT$11,250 | K73: NT$0 | L73: NT$14,648 | O73: NT$544,356 | R73: =IF(ValuesEntered,IF(R72<1,0,NPER($E$5/12,-$J$3,O73)),"") -> 265
B74: =ROWS($B$19:B74) -> 56 | C74: 2017-04-05 | D74: NT$544,356 | E74: NT$2,268 | F74: NT$1,130 | J74: NT$11,250 | K74: NT$0 | L74: NT$14,648 | O74: NT$543,226 | R74: =IF(ValuesEntered,IF(R73<1,0,NPER($E$5/12,-$J$3,O74)),"") -> 264
B75: =ROWS($B$19:B75) -> 57 | C75: 2017-05-05 | D75: NT$543,226 | E75: NT$2,263 | F75: NT$1,135 | J75: NT$11,250 | K75: NT$0 | L75: NT$14,648 | O75: NT$542,091 | R75: =IF(ValuesEntered,IF(R74<1,0,NPER($E$5/12,-$J$3,O75)),"") -> 263
B76: =ROWS($B$19:B76) -> 58 | C76: 2017-06-05 | D76: NT$542,091 | E76: NT$2,259 | F76: NT$1,140 | J76: NT$11,250 | K76: NT$0 | L76: NT$14,648 | O76: NT$540,951 | R76: =IF(ValuesEntered,IF(R75<1,0,NPER($E$5/12,-$J$3,O76)),"") -> 262
B77: =ROWS($B$19:B77) -> 59 | C77: 2017-07-05 | D77: NT$540,951 | E77: NT$2,254 | F77: NT$1,144 | J77: NT$11,250 | K77: NT$0 | L77: NT$14,648 | O77: NT$539,807 | R77: =IF(ValuesEntered,IF(R76<1,0,NPER($E$5/12,-$J$3,O77)),"") -> 261
B78: =ROWS($B$19:B78) -> 60 | C78: 2017-08-05 | D78: NT$539,807 | E78: NT$2,249 | F78: NT$1,149 | J78: NT$11,250 | K78: NT$0 | L78: NT$14,648 | O78: NT$538,658 | R78: =IF(ValuesEntered,IF(R77<1,0,NPER($E$5/12,-$J$3,O78)),"") -> 260
B79: =ROWS($B$19:B79) -> 61 | C79: 2017-09-05 | D79: NT$538,658 | E79: NT$2,244 | F79: NT$1,154 | J79: NT$11,250 | K79: NT$0 | L79: NT$14,648 | O79: NT$537,504 | R79: =IF(ValuesEntered,IF(R78<1,0,NPER($E$5/12,-$J$3,O79)),"") -> 259
B80: =ROWS($B$19:B80) -> 62 | C80: 2017-10-05 | D80: NT$537,504 | E80: NT$2,240 | F80: NT$1,159 | J80: NT$11,250 | K80: NT$0 | L80: NT$14,648 | O80: NT$536,346 | R80: =IF(ValuesEntered,IF(R79<1,0,NPER($E$5/12,-$J$3,O80)),"") -> 258
B81: =ROWS($B$19:B81) -> 63 | C81: 2017-11-05 | D81: NT$536,346 | E81: NT$2,235 | F81: NT$1,163 | J81: NT$11,250 | K81: NT$0 | L81: NT$14,648 | O81: NT$535,182 | R81: =IF(ValuesEntered,IF(R80<1,0,NPER($E$5/12,-$J$3,O81)),"") -> 257
B82: =ROWS($B$19:B82) -> 64 | C82: 2017-12-05 | D82: NT$535,182 | E82: NT$2,230 | F82: NT$1,168 | J82: NT$11,250 | K82: NT$0 | L82: NT$14,648 | O82: NT$534,014 | R82: =IF(ValuesEntered,IF(R81<1,0,NPER($E$5/12,-$J$3,O82)),"") -> 256
B83: =ROWS($B$19:B83) -> 65 | C83: 2018-01-05 | D83: NT$534,014 | E83: NT$2,225 | F83: NT$1,173 | J83: NT$11,250 | K83: NT$0 | L83: NT$14,648 | O83: NT$532,841 | R83: =IF(ValuesEntered,IF(R82<1,0,NPER($E$5/12,-$J$3,O83)),"") -> 255
B84: =ROWS($B$19:B84) -> 66 | C84: =IF(O83>0,EDATE(C83,1),"") -> 2018-02-05 | D84: =IF(C84="",0,O83) -> NT$532,841 | E84: =IFERROR(-IPMT($E$5/12,1,R83,D84),0) -> NT$2,220 | F84: =IFERROR(-PPMT($E$5/12,1,R83,D84),0) -> NT$1,178 | J84: =IF(C84="",0,$R$7) -> NT$11,250 | K84: =IF(C84="",0,IF(D84<0.8*$E$3,0,$P$11)) -> NT$0 | L84: =IF(C84="",0,E84+F84+I84+J84+K84) -> NT$14,648 | O84: =IF(C84="",0,D84-F84-I84) -> NT$531,663 | R84: =IF(ValuesEntered,IF(R83<1,0,NPER($E$5/12,-$J$3,O84)),"") -> 254
B85: =ROWS($B$19:B85) -> 67 | C85: 2018-03-05 | D85: NT$531,663 | E85: NT$2,215 | F85: NT$1,183 | J85: NT$11,250 | K85: NT$0 | L85: NT$14,648 | O85: NT$530,480 | R85: =IF(ValuesEntered,IF(R84<1,0,NPER($E$5/12,-$J$3,O85)),"") -> 253
B86: =ROWS($B$19:B86) -> 68 | C86: 2018-04-05 | D86: NT$530,480 | E86: NT$2,210 | F86: NT$1,188 | J86: NT$11,250 | K86: NT$0 | L86: NT$14,648 | O86: NT$529,292 | R86: =IF(ValuesEntered,IF(R85<1,0,NPER($E$5/12,-$J$3,O86)),"") -> 252
B87: =ROWS($B$19:B87) -> 69 | C87: 2018-05-05 | D87: NT$529,292 | E87: NT$2,205 | F87: NT$1,193 | J87: NT$11,250 | K87: NT$0 | L87: NT$14,648 | O87: NT$528,099 | R87: =IF(ValuesEntered,IF(R86<1,0,NPER($E$5/12,-$J$3,O87)),"") -> 251
B88: =ROWS($B$19:B88) -> 70 | C88: 2018-06-05 | D88: NT$528,099 | E88: NT$2,200 | F88: NT$1,198 | J88: NT$11,250 | K88: NT$0 | L88: NT$14,648 | O88: NT$526,901 | R88: =IF(ValuesEntered,IF(R87<1,0,NPER($E$5/12,-$J$3,O88)),"") -> 250
B89: =ROWS($B$19:B89) -> 71 | C89: 2018-07-05 | D89: NT$526,901 | E89: NT$2,195 | F89: NT$1,203 | J89: NT$11,250 | K89: NT$0 | L89: NT$14,648 | O89: NT$525,698 | R89: =IF(ValuesEntered,IF(R88<1,0,NPER($E$5/12,-$J$3,O89)),"") -> 249
B90: =ROWS($B$19:B90) -> 72 | C90: 2018-08-05 | D90: NT$525,698 | E90: NT$2,190 | F90: NT$1,208 | J90: NT$11,250 | K90: NT$0 | L90: NT$14,648 | O90: NT$524,490 | R90: =IF(ValuesEntered,IF(R89<1,0,NPER($E$5/12,-$J$3,O90)),"") -> 248
B91: =ROWS($B$19:B91) -> 73 | C91: 2018-09-05 | D91: NT$524,490 | E91: NT$2,185 | F91: NT$1,213 | J91: NT$11,250 | K91: NT$0 | L91: NT$14,648 | O91: NT$523,277 | R91: =IF(ValuesEntered,IF(R90<1,0,NPER($E$5/12,-$J$3,O91)),"") -> 247
B92: =ROWS($B$19:B92) -> 74 | C92: 2018-10-05 | D92: NT$523,277 | E92: NT$2,180 | F92: NT$1,218 | J92: NT$11,250 | K92: NT$0 | L92: NT$14,648 | O92: NT$522,059 | R92: =IF(ValuesEntered,IF(R91<1,0,NPER($E$5/12,-$J$3,O92)),"") -> 246
B93: =ROWS($B$19:B93) -> 75 | C93: 2018-11-05 | D93: NT$522,059 | E93: NT$2,175 | F93: NT$1,223 | J93: NT$11,250 | K93: NT$0 | L93: NT$14,648 | O93: NT$520,836 | R93: =IF(ValuesEntered,IF(R92<1,0,NPER($E$5/12,-$J$3,O93)),"") -> 245
B94: =ROWS($B$19:B94) -> 76 | C94: 2018-12-05 | D94: NT$520,836 | E94: NT$2,170 | F94: NT$1,228 | J94: NT$11,250 | K94: NT$0 | L94: NT$14,648 | O94: NT$519,608 | R94: =IF(ValuesEntered,IF(R93<1,0,NPER($E$5/12,-$J$3,O94)),"") -> 244
B95: =ROWS($B$19:B95) -> 77 | C95: 2019-01-05 | D95: NT$519,608 | E95: NT$2,165 | F95: NT$1,233 | J95: NT$11,250 | K95: NT$0 | L95: NT$14,648 | O95: NT$518,375 | R95: =IF(ValuesEntered,IF(R94<1,0,NPER($E$5/12,-$J$3,O95)),"") -> 243
B96: =ROWS($B$19:B96) -> 78 | C96: 2019-02-05 | D96: NT$518,375 | E96: NT$2,160 | F96: NT$1,238 | J96: NT$11,250 | K96: NT$0 | L96: NT$14,648 | O96: NT$517,137 | R96: =IF(ValuesEntered,IF(R95<1,0,NPER($E$5/12,-$J$3,O96)),"") -> 242
B97: =ROWS($B$19:B97) -> 79 | C97: 2019-03-05 | D97: NT$517,137 | E97: NT$2,155 | F97: NT$1,244 | J97: NT$11,250 | K97: NT$0 | L97: NT$14,648 | O97: NT$515,893 | R97: =IF(ValuesEntered,IF(R96<1,0,NPER($E$5/12,-$J$3,O97)),"") -> 241
B98: =ROWS($B$19:B98) -> 80 | C98: 2019-04-05 | D98: NT$515,893 | E98: NT$2,150 | F98: NT$1,249 | J98: NT$11,250 | K98: NT$0 | L98: NT$14,648 | O98: NT$514,644 | R98: =IF(ValuesEntered,IF(R97<1,0,NPER($E$5/12,-$J$3,O98)),"") -> 240
B99: =ROWS($B$19:B99) -> 81 | C99: 2019-05-05 | D99: NT$514,644 | E99: NT$2,144 | F99: NT$1,254 | J99: NT$11,250 | K99: NT$0 | L99: NT$14,648 | O99: NT$513,391 | R99: =IF(ValuesEntered,IF(R98<1,0,NPER($E$5/12,-$J$3,O99)),"") -> 239
B100: =ROWS($B$19:B100) -> 82 | C100: 2019-06-05 | D100: NT$513,391 | E100: NT$2,139 | F100: NT$1,259 | J100: NT$11,250 | K100: NT$0 | L100: NT$14,648 | O100: NT$512,131 | R100: =IF(ValuesEntered,IF(R99<1,0,NPER($E$5/12,-$J$3,O100)),"") -> 238
B101: =ROWS($B$19:B101) -> 83 | C101: 2019-07-05 | D101: NT$512,131 | E101: NT$2,134 | F101: NT$1,264 | J101: NT$11,250 | K101: NT$0 | L101: NT$14,648 | O101: NT$510,867 | R101: =IF(ValuesEntered,IF(R100<1,0,NPER($E$5/12,-$J$3,O101)),"") -> 237
B102: =ROWS($B$19:B102) -> 84 | C102: 2019-08-05 | D102: NT$510,867 | E102: NT$2,129 | F102: NT$1,270 | J102: NT$11,250 | K102: NT$0 | L102: NT$14,648 | O102: NT$509,597 | R102: =IF(ValuesEntered,IF(R101<1,0,NPER($E$5/12,-$J$3,O102)),"") -> 236
B103: =ROWS($B$19:B103) -> 85 | C103: 2019-09-05 | D103: NT$509,597 | E103: NT$2,123 | F103: NT$1,275 | J103: NT$11,250 | K103: NT$0 | L103: NT$14,648 | O103: NT$508,322 | R103: =IF(ValuesEntered,IF(R102<1,0,NPER($E$5/12,-$J$3,O103)),"") -> 235
B104: =ROWS($B$19:B104) -> 86 | C104: 2019-10-05 | D104: NT$508,322 | E104: NT$2,118 | F104: NT$1,280 | J104: NT$11,250 | K104: NT$0 | L104: NT$14,648 | O104: NT$507,042 | R104: =IF(ValuesEntered,IF(R103<1,0,NPER($E$5/12,-$J$3,O104)),"") -> 234
B105: =ROWS($B$19:B105) -> 87 | C105: 2019-11-05 | D105: NT$507,042 | E105: NT$2,113 | F105: NT$1,286 | J105: NT$11,250 | K105: NT$0 | L105: NT$14,648 | O105: NT$505,757 | R105: =IF(ValuesEntered,IF(R104<1,0,NPER($E$5/12,-$J$3,O105)),"") -> 233
B106: =ROWS($B$19:B106) -> 88 | C106: 2019-12-05 | D106: NT$505,757 | E106: NT$2,107 | F106: NT$1,291 | J106: NT$11,250 | K106: NT$0 | L106: NT$14,648 | O106: NT$504,466 | R106: =IF(ValuesEntered,IF(R105<1,0,NPER($E$5/12,-$J$3,O106)),"") -> 232
B107: =ROWS($B$19:B107) -> 89 | C107: 2020-01-05 | D107: NT$504,466 | E107: NT$2,102 | F107: NT$1,296 | J107: NT$11,250 | K107: NT$0 | L107: NT$14,648 | O107: NT$503,169 | R107: =IF(ValuesEntered,IF(R106<1,0,NPER($E$5/12,-$J$3,O107)),"") -> 231
B108: =ROWS($B$19:B108) -> 90 | C108: 2020-02-05 | D108: NT$503,169 | E108: NT$2,097 | F108: NT$1,302 | J108: NT$11,250 | K108: NT$0 | L108: NT$14,648 | O108: NT$501,868 | R108: =IF(ValuesEntered,IF(R107<1,0,NPER($E$5/12,-$J$3,O108)),"") -> 230
B109: =ROWS($B$19:B109) -> 91 | C109: 2020-03-05 | D109: NT$501,868 | E109: NT$2,091 | F109: NT$1,307 | J109: NT$11,250 | K109: NT$0 | L109: NT$14,648 | O109: NT$500,561 | R109: =IF(ValuesEntered,IF(R108<1,0,NPER($E$5/12,-$J$3,O109)),"") -> 229
B110: =ROWS($B$19:B110) -> 92 | C110: 2020-04-05 | D110: NT$500,561 | E110: NT$2,086 | F110: NT$1,313 | J110: NT$11,250 | K110: NT$0 | L110: NT$14,648 | O110: NT$499,248 | R110: =IF(ValuesEntered,IF(R109<1,0,NPER($E$5/12,-$J$3,O110)),"") -> 228
B111: =ROWS($B$19:B111) -> 93 | C111: 2020-05-05 | D111: NT$499,248 | E111: NT$2,080 | F111: NT$1,318 | J111: NT$11,250 | K111: NT$0 | L111: NT$14,648 | O111: NT$497,930 | R111: =IF(ValuesEntered,IF(R110<1,0,NPER($E$5/12,-$J$3,O111)),"") -> 227
B112: =ROWS($B$19:B112) -> 94 | C112: 2020-06-05 | D112: NT$497,930 | E112: NT$2,075 | F112: NT$1,324 | J112: NT$11,250 | K112: NT$0 | L112: NT$14,648 | O112: NT$496,606 | R112: =IF(ValuesEntered,IF(R111<1,0,NPER($E$5/12,-$J$3,O112)),"") -> 226
B113: =ROWS($B$19:B113) -> 95 | C113: 2020-07-05 | D113: NT$496,606 | E113: NT$2,069 | F113: NT$1,329 | J113: NT$11,250 | K113: NT$0 | L113: NT$14,648 | O113: NT$495,277 | R113: =IF(ValuesEntered,IF(R112<1,0,NPER($E$5/12,-$J$3,O113)),"") -> 225
B114: =ROWS($B$19:B114) -> 96 | C114: 2020-08-05 | D114: NT$495,277 | E114: NT$2,064 | F114: NT$1,335 | J114: NT$11,250 | K114: NT$0 | L114: NT$14,648 | O114: NT$493,943 | R114: =IF(ValuesEntered,IF(R113<1,0,NPER($E$5/12,-$J$3,O114)),"") -> 224
B115: =ROWS($B$19:B115) -> 97 | C115: 2020-09-05 | D115: NT$493,943 | E115: NT$2,058 | F115: NT$1,340 | J115: NT$11,250 | K115: NT$0 | L115: NT$14,648 | O115: NT$492,603 | R115: =IF(ValuesEntered,IF(R114<1,0,NPER($E$5/12,-$J$3,O115)),"") -> 223
B116: =ROWS($B$19:B116) -> 98 | C116: 2020-10-05 | D116: NT$492,603 | E116: NT$2,053 | F116: NT$1,346 | J116: NT$11,250 | K116: NT$0 | L116: NT$14,648 | O116: NT$491,257 | R116: =IF(ValuesEntered,IF(R115<1,0,NPER($E$5/12,-$J$3,O116)),"") -> 222
B117: =ROWS($B$19:B117) -> 99 | C117: 2020-11-05 | D117: NT$491,257 | E117: NT$2,047 | F117: NT$1,351 | J117: NT$11,250 | K117: NT$0 | L117: NT$14,648 | O117: NT$489,905 | R117: =IF(ValuesEntered,IF(R116<1,0,NPER($E$5/12,-$J$3,O117)),"") -> 221
B118: =ROWS($B$19:B118) -> 100 | C118: 2020-12-05 | D118: NT$489,905 | E118: NT$2,041 | F118: NT$1,357 | J118: NT$11,250 | K118: NT$0 | L118: NT$14,648 | O118: NT$488,548 | R118: =IF(ValuesEntered,IF(R117<1,0,NPER($E$5/12,-$J$3,O118)),"") -> 220
B119: =ROWS($B$19:B119) -> 101 | C119: 2021-01-05 | D119: NT$488,548 | E119: NT$2,036 | F119: NT$1,363 | J119: NT$11,250 | K119: NT$0 | L119: NT$14,648 | O119: NT$487,186 | R119: =IF(ValuesEntered,IF(R118<1,0,NPER($E$5/12,-$J$3,O119)),"") -> 219
B120: =ROWS($B$19:B120) -> 102 | C120: 2021-02-05 | D120: NT$487,186 | E120: NT$2,030 | F120: NT$1,368 | J120: NT$11,250 | K120: NT$0 | L120: NT$14,648 | O120: NT$485,818 | R120: =IF(ValuesEntered,IF(R119<1,0,NPER($E$5/12,-$J$3,O120)),"") -> 218
B121: =ROWS($B$19:B121) -> 103 | C121: 2021-03-05 | D121: NT$485,818 | E121: NT$2,024 | F121: NT$1,374 | J121: NT$11,250 | K121: NT$0 | L121: NT$14,648 | O121: NT$484,444 | R121: =IF(ValuesEntered,IF(R120<1,0,NPER($E$5/12,-$J$3,O121)),"") -> 217
B122: =ROWS($B$19:B122) -> 104 | C122: 2021-04-05 | D122: NT$484,444 | E122: NT$2,019 | F122: NT$1,380 | J122: NT$11,250 | K122: NT$0 | L122: NT$14,648 | O122: NT$483,064 | R122: =IF(ValuesEntered,IF(R121<1,0,NPER($E$5/12,-$J$3,O122)),"") -> 216
B123: =ROWS($B$19:B123) -> 105 | C123: 2021-05-05 | D123: NT$483,064 | E123: NT$2,013 | F123: NT$1,385 | J123: NT$11,250 | K123: NT$0 | L123: NT$14,648 | O123: NT$481,678 | R123: =IF(ValuesEntered,IF(R122<1,0,NPER($E$5/12,-$J$3,O123)),"") -> 215
B124: =ROWS($B$19:B124) -> 106 | C124: 2021-06-05 | D124: NT$481,678 | E124: NT$2,007 | F124: NT$1,391 | J124: NT$11,250 | K124: NT$0 | L124: NT$14,648 | O124: NT$480,287 | R124: =IF(ValuesEntered,IF(R123<1,0,NPER($E$5/12,-$J$3,O124)),"") -> 214
B125: =ROWS($B$19:B125) -> 107 | C125: 2021-07-05 | D125: NT$480,287 | E125: NT$2,001 | F125: NT$1,397 | J125: NT$11,250 | K125: NT$0 | L125: NT$14,648 | O125: NT$478,890 | R125: =IF(ValuesEntered,IF(R124<1,0,NPER($E$5/12,-$J$3,O125)),"") -> 213
B126: =ROWS($B$19:B126) -> 108 | C126: 2021-08-05 | D126: NT$478,890 | E126: NT$1,995 | F126: NT$1,403 | J126: NT$11,250 | K126: NT$0 | L126: NT$14,648 | O126: NT$477,487 | R126: =IF(ValuesEntered,IF(R125<1,0,NPER($E$5/12,-$J$3,O126)),"") -> 212
B127: =ROWS($B$19:B127) -> 109 | C127: 2021-09-05 | D127: NT$477,487 | E127: NT$1,990 | F127: NT$1,409 | J127: NT$11,250 | K127: NT$0 | L127: NT$14,648 | O127: NT$476,078 | R127: =IF(ValuesEntered,IF(R126<1,0,NPER($E$5/12,-$J$3,O127)),"") -> 211
B128: =ROWS($B$19:B128) -> 110 | C128: 2021-10-05 | D128: NT$476,078 | E128: NT$1,984 | F128: NT$1,415 | J128: NT$11,250 | K128: NT$0 | L128: NT$14,648 | O128: NT$474,664 | R128: =IF(ValuesEntered,IF(R127<1,0,NPER($E$5/12,-$J$3,O128)),"") -> 210
B129: =ROWS($B$19:B129) -> 111 | C129: 2021-11-05 | D129: NT$474,664 | E129: NT$1,978 | F129: NT$1,420 | J129: NT$11,250 | K129: NT$0 | L129: NT$14,648 | O129: NT$473,243 | R129: =IF(ValuesEntered,IF(R128<1,0,NPER($E$5/12,-$J$3,O129)),"") -> 209
B130: =ROWS($B$19:B130) -> 112 | C130: 2021-12-05 | D130: NT$473,243 | E130: NT$1,972 | F130: NT$1,426 | J130: NT$11,250 | K130: NT$0 | L130: NT$14,648 | O130: NT$471,817 | R130: =IF(ValuesEntered,IF(R129<1,0,NPER($E$5/12,-$J$3,O130)),"") -> 208
B131: =ROWS($B$19:B131) -> 113 | C131: 2022-01-05 | D131: NT$471,817 | E131: NT$1,966 | F131: NT$1,432 | J131: NT$11,250 | K131: NT$0 | L131: NT$14,648 | O131: NT$470,385 | R131: =IF(ValuesEntered,IF(R130<1,0,NPER($E$5/12,-$J$3,O131)),"") -> 207
B132: =ROWS($B$19:B132) -> 114 | C132: 2022-02-05 | D132: NT$470,385 | E132: NT$1,960 | F132: NT$1,438 | J132: NT$11,250 | K132: NT$0 | L132: NT$14,648 | O132: NT$468,946 | R132: =IF(ValuesEntered,IF(R131<1,0,NPER($E$5/12,-$J$3,O132)),"") -> 206
B133: =ROWS($B$19:B133) -> 115 | C133: 2022-03-05 | D133: NT$468,946 | E133: NT$1,954 | F133: NT$1,444 | J133: NT$11,250 | K133: NT$0 | L133: NT$14,648 | O133: NT$467,502 | R133: =IF(ValuesEntered,IF(R132<1,0,NPER($E$5/12,-$J$3,O133)),"") -> 205
B134: =ROWS($B$19:B134) -> 116 | C134: 2022-04-05 | D134: NT$467,502 | E134: NT$1,948 | F134: NT$1,450 | J134: NT$11,250 | K134: NT$0 | L134: NT$14,648 | O134: NT$466,052 | R134: =IF(ValuesEntered,IF(R133<1,0,NPER($E$5/12,-$J$3,O134)),"") -> 204
B135: =ROWS($B$19:B135) -> 117 | C135: 2022-05-05 | D135: NT$466,052 | E135: NT$1,942 | F135: NT$1,456 | J135: NT$11,250 | K135: NT$0 | L135: NT$14,648 | O135: NT$464,595 | R135: =IF(ValuesEntered,IF(R134<1,0,NPER($E$5/12,-$J$3,O135)),"") -> 203
B136: =ROWS($B$19:B136) -> 118 | C136: 2022-06-05 | D136: NT$464,595 | E136: NT$1,936 | F136: NT$1,462 | J136: NT$11,250 | K136: NT$0 | L136: NT$14,648 | O136: NT$463,133 | R136: =IF(ValuesEntered,IF(R135<1,0,NPER($E$5/12,-$J$3,O136)),"") -> 202
B137: =ROWS($B$19:B137) -> 119 | C137: 2022-07-05 | D137: NT$463,133 | E137: NT$1,930 | F137: NT$1,469 | J137: NT$11,250 | K137: NT$0 | L137: NT$14,648 | O137: NT$461,664 | R137: =IF(ValuesEntered,IF(R136<1,0,NPER($E$5/12,-$J$3,O137)),"") -> 201
B138: =ROWS($B$19:B138) -> 120 | C138: 2022-08-05 | D138: NT$461,664 | E138: NT$1,924 | F138: NT$1,475 | J138: NT$11,250 | K138: NT$0 | L138: NT$14,648 | O138: NT$460,190 | R138: =IF(ValuesEntered,IF(R137<1,0,NPER($E$5/12,-$J$3,O138)),"") -> 200
B139: =ROWS($B$19:B139) -> 121 | C139: 2022-09-05 | D139: NT$460,190 | E139: NT$1,917 | F139: NT$1,481 | J139: NT$11,250 | K139: NT$0 | L139: NT$14,648 | O139: NT$458,709 | R139: =IF(ValuesEntered,IF(R138<1,0,NPER($E$5/12,-$J$3,O139)),"") -> 199
B140: =ROWS($B$19:B140) -> 122 | C140: 2022-10-05 | D140: NT$458,709 | E140: NT$1,911 | F140: NT$1,487 | J140: NT$11,250 | K140: NT$0 | L140: NT$14,648 | O140: NT$457,222 | R140: =IF(ValuesEntered,IF(R139<1,0,NPER($E$5/12,-$J$3,O140)),"") -> 198
B141: =ROWS($B$19:B141) -> 123 | C141: 2022-11-05 | D141: NT$457,222 | E141: NT$1,905 | F141: NT$1,493 | J141: NT$11,250 | K141: NT$0 | L141: NT$14,648 | O141: NT$455,729 | R141: =IF(ValuesEntered,IF(R140<1,0,NPER($E$5/12,-$J$3,O141)),"") -> 197
B142: =ROWS($B$19:B142) -> 124 | C142: 2022-12-05 | D142: NT$455,729 | E142: NT$1,899 | F142: NT$1,499 | J142: NT$11,250 | K142: NT$0 | L142: NT$14,648 | O142: NT$454,229 | R142: =IF(ValuesEntered,IF(R141<1,0,NPER($E$5/12,-$J$3,O142)),"") -> 196
B143: =ROWS($B$19:B143) -> 125 | C143: 2023-01-05 | D143: NT$454,229 | E143: NT$1,893 | F143: NT$1,506 | J143: NT$11,250 | K143: NT$0 | L143: NT$14,648 | O143: NT$452,724 | R143: =IF(ValuesEntered,IF(R142<1,0,NPER($E$5/12,-$J$3,O143)),"") -> 195
B144: =ROWS($B$19:B144) -> 126 | C144: 2023-02-05 | D144: NT$452,724 | E144: NT$1,886 | F144: NT$1,512 | J144: NT$11,250 | K144: NT$0 | L144: NT$14,648 | O144: NT$451,212 | R144: =IF(ValuesEntered,IF(R143<1,0,NPER($E$5/12,-$J$3,O144)),"") -> 194
B145: =ROWS($B$19:B145) -> 127 | C145: 2023-03-05 | D145: NT$451,212 | E145: NT$1,880 | F145: NT$1,518 | J145: NT$11,250 | K145: NT$0 | L145: NT$14,648 | O145: NT$449,693 | R145: =IF(ValuesEntered,IF(R144<1,0,NPER($E$5/12,-$J$3,O145)),"") -> 193
B146: =ROWS($B$19:B146) -> 128 | C146: 2023-04-05 | D146: NT$449,693 | E146: NT$1,874 | F146: NT$1,525 | J146: NT$11,250 | K146: NT$0 | L146: NT$14,648 | O146: NT$448,169 | R146: =IF(ValuesEntered,IF(R145<1,0,NPER($E$5/12,-$J$3,O146)),"") -> 192
B147: =ROWS($B$19:B147) -> 129 | C147: 2023-05-05 | D147: NT$448,169 | E147: NT$1,867 | F147: NT$1,531 | J147: NT$11,250 | K147: NT$0 | L147: NT$14,648 | O147: NT$446,638 | R147: =IF(ValuesEntered,IF(R146<1,0,NPER($E$5/12,-$J$3,O147)),"") -> 191
B148: =ROWS($B$19:B148) -> 130 | C148: =IF(O147>0,EDATE(C147,1),"") -> 2023-06-05 | D148: =IF(C148="",0,O147) -> NT$446,638 | E148: =IFERROR(-IPMT($E$5/12,1,R147,D148),0) -> NT$1,861 | F148: =IFERROR(-PPMT($E$5/12,1,R147,D148),0) -> NT$1,537 | J148: =IF(C148="",0,$R$7) -> NT$11,250 | K148: =IF(C148="",0,IF(D148<0.8*$E$3,0,$P$11)) -> NT$0 | L148: =IF(C148="",0,E148+F148+I148+J148+K148) -> NT$14,648 | O148: =IF(C148="",0,D148-F148-I148) -> NT$445,101 | R148: =IF(ValuesEntered,IF(R147<1,0,NPER($E$5/12,-$J$3,O148)),"") -> 190
B149: =ROWS($B$19:B149) -> 131 | C149: 2023-07-05 | D149: NT$445,101 | E149: NT$1,855 | F149: NT$1,544 | J149: NT$11,250 | K149: NT$0 | L149: NT$14,648 | O149: NT$443,557 | R149: =IF(ValuesEntered,IF(R148<1,0,NPER($E$5/12,-$J$3,O149)),"") -> 189
B150: =ROWS($B$19:B150) -> 132 | C150: 2023-08-05 | D150: NT$443,557 | E150: NT$1,848 | F150: NT$1,550 | J150: NT$11,250 | K150: NT$0 | L150: NT$14,648 | O150: NT$442,007 | R150: =IF(ValuesEntered,IF(R149<1,0,NPER($E$5/12,-$J$3,O150)),"") -> 188
B151: =ROWS($B$19:B151) -> 133 | C151: 2023-09-05 | D151: NT$442,007 | E151: NT$1,842 | F151: NT$1,557 | J151: NT$11,250 | K151: NT$0 | L151: NT$14,648 | O151: NT$440,450 | R151: =IF(ValuesEntered,IF(R150<1,0,NPER($E$5/12,-$J$3,O151)),"") -> 187
B152: =ROWS($B$19:B152) -> 134 | C152: 2023-10-05 | D152: NT$440,450 | E152: NT$1,835 | F152: NT$1,563 | J152: NT$11,250 | K152: NT$0 | L152: NT$14,648 | O152: NT$438,887 | R152: =IF(ValuesEntered,IF(R151<1,0,NPER($E$5/12,-$J$3,O152)),"") -> 186
B153: =ROWS($B$19:B153) -> 135 | C153: 2023-11-05 | D153: NT$438,887 | E153: NT$1,829 | F153: NT$1,570 | J153: NT$11,250 | K153: NT$0 | L153: NT$14,648 | O153: NT$437,318 | R153: =IF(ValuesEntered,IF(R152<1,0,NPER($E$5/12,-$J$3,O153)),"") -> 185
B154: =ROWS($B$19:B154) -> 136 | C154: 2023-12-05 | D154: NT$437,318 | E154: NT$1,822 | F154: NT$1,576 | J154: NT$11,250 | K154: NT$0 | L154: NT$14,648 | O154: NT$435,742 | R154: =IF(ValuesEntered,IF(R153<1,0,NPER($E$5/12,-$J$3,O154)),"") -> 184
B155: =ROWS($B$19:B155) -> 137 | C155: 2024-01-05 | D155: NT$435,742 | E155: NT$1,816 | F155: NT$1,583 | J155: NT$11,250 | K155: NT$0 | L155: NT$14,648 | O155: NT$434,159 | R155: =IF(ValuesEntered,IF(R154<1,0,NPER($E$5/12,-$J$3,O155)),"") -> 183
B156: =ROWS($B$19:B156) -> 138 | C156: 2024-02-05 | D156: NT$434,159 | E156: NT$1,809 | F156: NT$1,589 | J156: NT$11,250 | K156: NT$0 | L156: NT$14,648 | O156: NT$432,570 | R156: =IF(ValuesEntered,IF(R155<1,0,NPER($E$5/12,-$J$3,O156)),"") -> 182
B157: =ROWS($B$19:B157) -> 139 | C157: 2024-03-05 | D157: NT$432,570 | E157: NT$1,802 | F157: NT$1,596 | J157: NT$11,250 | K157: NT$0 | L157: NT$14,648 | O157: NT$430,974 | R157: =IF(ValuesEntered,IF(R156<1,0,NPER($E$5/12,-$J$3,O157)),"") -> 181
B158: =ROWS($B$19:B158) -> 140 | C158: 2024-04-05 | D158: NT$430,974 | E158: NT$1,796 | F158: NT$1,603 | J158: NT$11,250 | K158: NT$0 | L158: NT$14,648 | O158: NT$429,371 | R158: =IF(ValuesEntered,IF(R157<1,0,NPER($E$5/12,-$J$3,O158)),"") -> 180
B159: =ROWS($B$19:B159) -> 141 | C159: 2024-05-05 | D159: NT$429,371 | E159: NT$1,789 | F159: NT$1,609 | J159: NT$11,250 | K159: NT$0 | L159: NT$14,648 | O159: NT$427,762 | R159: =IF(ValuesEntered,IF(R158<1,0,NPER($E$5/12,-$J$3,O159)),"") -> 179
B160: =ROWS($B$19:B160) -> 142 | C160: 2024-06-05 | D160: NT$427,762 | E160: NT$1,782 | F160: NT$1,616 | J160: NT$11,250 | K160: NT$0 | L160: NT$14,648 | O160: NT$426,146 | R160: =IF(ValuesEntered,IF(R159<1,0,NPER($E$5/12,-$J$3,O160)),"") -> 178
B161: =ROWS($B$19:B161) -> 143 | C161: 2024-07-05 | D161: NT$426,146 | E161: NT$1,776 | F161: NT$1,623 | J161: NT$11,250 | K161: NT$0 | L161: NT$14,648 | O161: NT$424,524 | R161: =IF(ValuesEntered,IF(R160<1,0,NPER($E$5/12,-$J$3,O161)),"") -> 177
B162: =ROWS($B$19:B162) -> 144 | C162: 2024-08-05 | D162: NT$424,524 | E162: NT$1,769 | F162: NT$1,629 | J162: NT$11,250 | K162: NT$0 | L162: NT$14,648 | O162: NT$422,894 | R162: =IF(ValuesEntered,IF(R161<1,0,NPER($E$5/12,-$J$3,O162)),"") -> 176
B163: =ROWS($B$19:B163) -> 145 | C163: 2024-09-05 | D163: NT$422,894 | E163: NT$1,762 | F163: NT$1,636 | J163: NT$11,250 | K163: NT$0 | L163: NT$14,648 | O163: NT$421,258 | R163: =IF(ValuesEntered,IF(R162<1,0,NPER($E$5/12,-$J$3,O163)),"") -> 175
B164: =ROWS($B$19:B164) -> 146 | C164: 2024-10-05 | D164: NT$421,258 | E164: NT$1,755 | F164: NT$1,643 | J164: NT$11,250 | K164: NT$0 | L164: NT$14,648 | O164: NT$419,615 | R164: =IF(ValuesEntered,IF(R163<1,0,NPER($E$5/12,-$J$3,O164)),"") -> 174
B165: =ROWS($B$19:B165) -> 147 | C165: 2024-11-05 | D165: NT$419,615 | E165: NT$1,748 | F165: NT$1,650 | J165: NT$11,250 | K165: NT$0 | L165: NT$14,648 | O165: NT$417,965 | R165: =IF(ValuesEntered,IF(R164<1,0,NPER($E$5/12,-$J$3,O165)),"") -> 173
B166: =ROWS($B$19:B166) -> 148 | C166: 2024-12-05 | D166: NT$417,965 | E166: NT$1,742 | F166: NT$1,657 | J166: NT$11,250 | K166: NT$0 | L166: NT$14,648 | O166: NT$416,308 | R166: =IF(ValuesEntered,IF(R165<1,0,NPER($E$5/12,-$J$3,O166)),"") -> 172
B167: =ROWS($B$19:B167) -> 149 | C167: 2025-01-05 | D167: NT$416,308 | E167: NT$1,735 | F167: NT$1,664 | J167: NT$11,250 | K167: NT$0 | L167: NT$14,648 | O167: NT$414,645 | R167: =IF(ValuesEntered,IF(R166<1,0,NPER($E$5/12,-$J$3,O167)),"") -> 171
B168: =ROWS($B$19:B168) -> 150 | C168: 2025-02-05 | D168: NT$414,645 | E168: NT$1,728 | F168: NT$1,671 | J168: NT$11,250 | K168: NT$0 | L168: NT$14,648 | O168: NT$412,974 | R168: =IF(ValuesEntered,IF(R167<1,0,NPER($E$5/12,-$J$3,O168)),"") -> 170
B169: =ROWS($B$19:B169) -> 151 | C169: 2025-03-05 | D169: NT$412,974 | E169: NT$1,721 | F169: NT$1,678 | J169: NT$11,250 | K169: NT$0 | L169: NT$14,648 | O169: NT$411,297 | R169: =IF(ValuesEntered,IF(R168<1,0,NPER($E$5/12,-$J$3,O169)),"") -> 169
B170: =ROWS($B$19:B170) -> 152 | C170: 2025-04-05 | D170: NT$411,297 | E170: NT$1,714 | F170: NT$1,685 | J170: NT$11,250 | K170: NT$0 | L170: NT$14,648 | O170: NT$409,612 | R170: =IF(ValuesEntered,IF(R169<1,0,NPER($E$5/12,-$J$3,O170)),"") -> 168
B171: =ROWS($B$19:B171) -> 153 | C171: 2025-05-05 | D171: NT$409,612 | E171: NT$1,707 | F171: NT$1,692 | J171: NT$11,250 | K171: NT$0 | L171: NT$14,648 | O171: NT$407,921 | R171: =IF(ValuesEntered,IF(R170<1,0,NPER($E$5/12,-$J$3,O171)),"") -> 167
B172: =ROWS($B$19:B172) -> 154 | C172: 2025-06-05 | D172: NT$407,921 | E172: NT$1,700 | F172: NT$1,699 | J172: NT$11,250 | K172: NT$0 | L172: NT$14,648 | O172: NT$406,222 | R172: =IF(ValuesEntered,IF(R171<1,0,NPER($E$5/12,-$J$3,O172)),"") -> 166
B173: =ROWS($B$19:B173) -> 155 | C173: 2025-07-05 | D173: NT$406,222 | E173: NT$1,693 | F173: NT$1,706 | J173: NT$11,250 | K173: NT$0 | L173: NT$14,648 | O173: NT$404,516 | R173: =IF(ValuesEntered,IF(R172<1,0,NPER($E$5/12,-$J$3,O173)),"") -> 165
B174: =ROWS($B$19:B174) -> 156 | C174: 2025-08-05 | D174: NT$404,516 | E174: NT$1,685 | F174: NT$1,713 | J174: NT$11,250 | K174: NT$0 | L174: NT$14,648 | O174: NT$402,804 | R174: =IF(ValuesEntered,IF(R173<1,0,NPER($E$5/12,-$J$3,O174)),"") -> 164
B175: =ROWS($B$19:B175) -> 157 | C175: 2025-09-05 | D175: NT$402,804 | E175: NT$1,678 | F175: NT$1,720 | J175: NT$11,250 | K175: NT$0 | L175: NT$14,648 | O175: NT$401,084 | R175: =IF(ValuesEntered,IF(R174<1,0,NPER($E$5/12,-$J$3,O175)),"") -> 163
B176: =ROWS($B$19:B176) -> 158 | C176: 2025-10-05 | D176: NT$401,084 | E176: NT$1,671 | F176: NT$1,727 | J176: NT$11,250 | K176: NT$0 | L176: NT$14,648 | O176: NT$399,357 | R176: =IF(ValuesEntered,IF(R175<1,0,NPER($E$5/12,-$J$3,O176)),"") -> 162
B177: =ROWS($B$19:B177) -> 159 | C177: 2025-11-05 | D177: NT$399,357 | E177: NT$1,664 | F177: NT$1,734 | J177: NT$11,250 | K177: NT$0 | L177: NT$14,648 | O177: NT$397,622 | R177: =IF(ValuesEntered,IF(R176<1,0,NPER($E$5/12,-$J$3,O177)),"") -> 161
B178: =ROWS($B$19:B178) -> 160 | C178: 2025-12-05 | D178: NT$397,622 | E178: NT$1,657 | F178: NT$1,741 | J178: NT$11,250 | K178: NT$0 | L178: NT$14,648 | O178: NT$395,881 | R178: =IF(ValuesEntered,IF(R177<1,0,NPER($E$5/12,-$J$3,O178)),"") -> 160
B179: =ROWS($B$19:B179) -> 161 | C179: 2026-01-05 | D179: NT$395,881 | E179: NT$1,650 | F179: NT$1,749 | J179: NT$11,250 | K179: NT$0 | L179: NT$14,648 | O179: NT$394,132 | R179: =IF(ValuesEntered,IF(R178<1,0,NPER($E$5/12,-$J$3,O179)),"") -> 159
B180: =ROWS($B$19:B180) -> 162 | C180: 2026-02-05 | D180: NT$394,132 | E180: NT$1,642 | F180: NT$1,756 | J180: NT$11,250 | K180: NT$0 | L180: NT$14,648 | O180: NT$392,376 | R180: =IF(ValuesEntered,IF(R179<1,0,NPER($E$5/12,-$J$3,O180)),"") -> 158
B181: =ROWS($B$19:B181) -> 163 | C181: 2026-03-05 | D181: NT$392,376 | E181: NT$1,635 | F181: NT$1,763 | J181: NT$11,250 | K181: NT$0 | L181: NT$14,648 | O181: NT$390,613 | R181: =IF(ValuesEntered,IF(R180<1,0,NPER($E$5/12,-$J$3,O181)),"") -> 157
B182: =ROWS($B$19:B182) -> 164 | C182: 2026-04-05 | D182: NT$390,613 | E182: NT$1,628 | F182: NT$1,771 | J182: NT$11,250 | K182: NT$0 | L182: NT$14,648 | O182: NT$388,842 | R182: =IF(ValuesEntered,IF(R181<1,0,NPER($E$5/12,-$J$3,O182)),"") -> 156
B183: =ROWS($B$19:B183) -> 165 | C183: 2026-05-05 | D183: NT$388,842 | E183: NT$1,620 | F183: NT$1,778 | J183: NT$11,250 | K183: NT$0 | L183: NT$14,648 | O183: NT$387,064 | R183: =IF(ValuesEntered,IF(R182<1,0,NPER($E$5/12,-$J$3,O183)),"") -> 155
B184: =ROWS($B$19:B184) -> 166 | C184: 2026-06-05 | D184: NT$387,064 | E184: NT$1,613 | F184: NT$1,785 | J184: NT$11,250 | K184: NT$0 | L184: NT$14,648 | O184: NT$385,278 | R184: =IF(ValuesEntered,IF(R183<1,0,NPER($E$5/12,-$J$3,O184)),"") -> 154
B185: =ROWS($B$19:B185) -> 167 | C185: 2026-07-05 | D185: NT$385,278 | E185: NT$1,605 | F185: NT$1,793 | J185: NT$11,250 | K185: NT$0 | L185: NT$14,648 | O185: NT$383,486 | R185: =IF(ValuesEntered,IF(R184<1,0,NPER($E$5/12,-$J$3,O185)),"") -> 153
B186: =ROWS($B$19:B186) -> 168 | C186: 2026-08-05 | D186: NT$383,486 | E186: NT$1,598 | F186: NT$1,800 | J186: NT$11,250 | K186: NT$0 | L186: NT$14,648 | O186: NT$381,685 | R186: =IF(ValuesEntered,IF(R185<1,0,NPER($E$5/12,-$J$3,O186)),"") -> 152
B187: =ROWS($B$19:B187) -> 169 | C187: 2026-09-05 | D187: NT$381,685 | E187: NT$1,590 | F187: NT$1,808 | J187: NT$11,250 | K187: NT$0 | L187: NT$14,648 | O187: NT$379,877 | R187: =IF(ValuesEntered,IF(R186<1,0,NPER($E$5/12,-$J$3,O187)),"") -> 151
B188: =ROWS($B$19:B188) -> 170 | C188: 2026-10-05 | D188: NT$379,877 | E188: NT$1,583 | F188: NT$1,815 | J188: NT$11,250 | K188: NT$0 | L188: NT$14,648 | O188: NT$378,062 | R188: =IF(ValuesEntered,IF(R187<1,0,NPER($E$5/12,-$J$3,O188)),"") -> 150
B189: =ROWS($B$19:B189) -> 171 | C189: 2026-11-05 | D189: NT$378,062 | E189: NT$1,575 | F189: NT$1,823 | J189: NT$11,250 | K189: NT$0 | L189: NT$14,648 | O189: NT$376,239 | R189: =IF(ValuesEntered,IF(R188<1,0,NPER($E$5/12,-$J$3,O189)),"") -> 149
B190: =ROWS($B$19:B190) -> 172 | C190: 2026-12-05 | D190: NT$376,239 | E190: NT$1,568 | F190: NT$1,831 | J190: NT$11,250 | K190: NT$0 | L190: NT$14,648 | O190: NT$374,408 | R190: =IF(ValuesEntered,IF(R189<1,0,NPER($E$5/12,-$J$3,O190)),"") -> 148
B191: =ROWS($B$19:B191) -> 173 | C191: 2027-01-05 | D191: NT$374,408 | E191: NT$1,560 | F191: NT$1,838 | J191: NT$11,250 | K191: NT$0 | L191: NT$14,648 | O191: NT$372,570 | R191: =IF(ValuesEntered,IF(R190<1,0,NPER($E$5/12,-$J$3,O191)),"") -> 147
B192: =ROWS($B$19:B192) -> 174 | C192: 2027-02-05 | D192: NT$372,570 | E192: NT$1,552 | F192: NT$1,846 | J192: NT$11,250 | K192: NT$0 | L192: NT$14,648 | O192: NT$370,724 | R192: =IF(ValuesEntered,IF(R191<1,0,NPER($E$5/12,-$J$3,O192)),"") -> 146
B193: =ROWS($B$19:B193) -> 175 | C193: 2027-03-05 | D193: NT$370,724 | E193: NT$1,545 | F193: NT$1,854 | J193: NT$11,250 | K193: NT$0 | L193: NT$14,648 | O193: NT$368,871 | R193: =IF(ValuesEntered,IF(R192<1,0,NPER($E$5/12,-$J$3,O193)),"") -> 145
B194: =ROWS($B$19:B194) -> 176 | C194: 2027-04-05 | D194: NT$368,871 | E194: NT$1,537 | F194: NT$1,861 | J194: NT$11,250 | K194: NT$0 | L194: NT$14,648 | O194: NT$367,009 | R194: =IF(ValuesEntered,IF(R193<1,0,NPER($E$5/12,-$J$3,O194)),"") -> 144
B195: =ROWS($B$19:B195) -> 177 | C195: 2027-05-05 | D195: NT$367,009 | E195: NT$1,529 | F195: NT$1,869 | J195: NT$11,250 | K195: NT$0 | L195: NT$14,648 | O195: NT$365,140 | R195: =IF(ValuesEntered,IF(R194<1,0,NPER($E$5/12,-$J$3,O195)),"") -> 143
B196: =ROWS($B$19:B196) -> 178 | C196: 2027-06-05 | D196: NT$365,140 | E196: NT$1,521 | F196: NT$1,877 | J196: NT$11,250 | K196: NT$0 | L196: NT$14,648 | O196: NT$363,263 | R196: =IF(ValuesEntered,IF(R195<1,0,NPER($E$5/12,-$J$3,O196)),"") -> 142
B197: =ROWS($B$19:B197) -> 179 | C197: 2027-07-05 | D197: NT$363,263 | E197: NT$1,514 | F197: NT$1,885 | J197: NT$11,250 | K197: NT$0 | L197: NT$14,648 | O197: NT$361,379 | R197: =IF(ValuesEntered,IF(R196<1,0,NPER($E$5/12,-$J$3,O197)),"") -> 141
B198: =ROWS($B$19:B198) -> 180 | C198: 2027-08-05 | D198: NT$361,379 | E198: NT$1,506 | F198: NT$1,893 | J198: NT$11,250 | K198: NT$0 | L198: NT$14,648 | O198: NT$359,486 | R198: =IF(ValuesEntered,IF(R197<1,0,NPER($E$5/12,-$J$3,O198)),"") -> 140
B199: =ROWS($B$19:B199) -> 181 | C199: 2027-09-05 | D199: NT$359,486 | E199: NT$1,498 | F199: NT$1,900 | J199: NT$11,250 | K199: NT$0 | L199: NT$14,648 | O199: NT$357,586 | R199: =IF(ValuesEntered,IF(R198<1,0,NPER($E$5/12,-$J$3,O199)),"") -> 139
B200: =ROWS($B$19:B200) -> 182 | C200: 2027-10-05 | D200: NT$357,586 | E200: NT$1,490 | F200: NT$1,908 | J200: NT$11,250 | K200: NT$0 | L200: NT$14,648 | O200: NT$355,678 | R200: =IF(ValuesEntered,IF(R199<1,0,NPER($E$5/12,-$J$3,O200)),"") -> 138
B201: =ROWS($B$19:B201) -> 183 | C201: 2027-11-05 | D201: NT$355,678 | E201: NT$1,482 | F201: NT$1,916 | J201: NT$11,250 | K201: NT$0 | L201: NT$14,648 | O201: NT$353,761 | R201: =IF(ValuesEntered,IF(R200<1,0,NPER($E$5/12,-$J$3,O201)),"") -> 137
B202: =ROWS($B$19:B202) -> 184 | C202: 2027-12-05 | D202: NT$353,761 | E202: NT$1,474 | F202: NT$1,924 | J202: NT$11,250 | K202: NT$0 | L202: NT$14,648 | O202: NT$351,837 | R202: =IF(ValuesEntered,IF(R201<1,0,NPER($E$5/12,-$J$3,O202)),"") -> 136
B203: =ROWS($B$19:B203) -> 185 | C203: 2028-01-05 | D203: NT$351,837 | E203: NT$1,466 | F203: NT$1,932 | J203: NT$11,250 | K203: NT$0 | L203: NT$14,648 | O203: NT$349,905 | R203: =IF(ValuesEntered,IF(R202<1,0,NPER($E$5/12,-$J$3,O203)),"") -> 135
B204: =ROWS($B$19:B204) -> 186 | C204: 2028-02-05 | D204: NT$349,905 | E204: NT$1,458 | F204: NT$1,940 | J204: NT$11,250 | K204: NT$0 | L204: NT$14,648 | O204: NT$347,964 | R204: =IF(ValuesEntered,IF(R203<1,0,NPER($E$5/12,-$J$3,O204)),"") -> 134
B205: =ROWS($B$19:B205) -> 187 | C205: 2028-03-05 | D205: NT$347,964 | E205: NT$1,450 | F205: NT$1,948 | J205: NT$11,250 | K205: NT$0 | L205: NT$14,648 | O205: NT$346,016 | R205: =IF(ValuesEntered,IF(R204<1,0,NPER($E$5/12,-$J$3,O205)),"") -> 133
B206: =ROWS($B$19:B206) -> 188 | C206: 2028-04-05 | D206: NT$346,016 | E206: NT$1,442 | F206: NT$1,957 | J206: NT$11,250 | K206: NT$0 | L206: NT$14,648 | O206: NT$344,059 | R206: =IF(ValuesEntered,IF(R205<1,0,NPER($E$5/12,-$J$3,O206)),"") -> 132
B207: =ROWS($B$19:B207) -> 189 | C207: 2028-05-05 | D207: NT$344,059 | E207: NT$1,434 | F207: NT$1,965 | J207: NT$11,250 | K207: NT$0 | L207: NT$14,648 | O207: NT$342,095 | R207: =IF(ValuesEntered,IF(R206<1,0,NPER($E$5/12,-$J$3,O207)),"") -> 131
... 231 more rows

Sheet 設定
A1: 每月還款方案設定
B2: 下表中的資訊提供每月還款方案下拉式清單中的選項，以及用於方案計算的值。 對表格所做的任何變更都可能導致方案發生錯誤。
B4: 設定 | C4: 增加 10% | D4: 110%
C5: 增加 25% | D5: 125%
C6: 正常不變 | D6: 100%
C7: 減少 10% | D7: 90%
C8: 減少 15% | D8: 85%
